bitfinex/quotes_ETHUSD_20220309
["timestamp","ask_amount","ask_price","bid_price","bid_amount"]
[1646853777795,0.51998816,2696.6,2696.5,0.00106634]
[1646853779795,0.07898816,2696.6,2696.5,0.00106634]
[1646853780394,0.07898816,2696.6,2696.5,3.50106634]
[1646853780639,0.07898816,2696.6,2696.5,0.00106634]
[1646853780841,0.00407897,2696.7,2696.6,5.5]
[1646853781043,0.0397592,2696.8,2696.6,6.6441]
[1646853781238,0.0397592,2696.8,2696.6,1.1441]
[1646853781239,0.00407897,2696.7,2696.6,1.1441]
[1646853781441,0.04985049,2696.7,2696.6,1.1441]
[1646853781641,0.04985049,2696.7,2696.5,0.00106634]
[1646853782240,0.04577152,2696.7,2696.5,0.00106634]
[1646853782441,0.49074742,2696.7,2696.5,0.00106634]
[1646853782640,2.48172597,2696.7,2696.5,0.00106634]
[1646853783449,2.48172597,2696.7,2695.4,0.016225]
[1646853783450,14.26,2696.6,2695.4,0.016225]
[1646853783651,0.92812,2696.1,2695.3,0.00271124]
[1646853783847,1.953192,2696.1,2695.3,0.00271124]
[1646853784397,1.441,2696.0,2695.3,0.00271124]
[1646853784586,1.0,2695.9,2695.4,0.87371501]
[1646853784787,0.44497618,2695.8,2695.4,0.87371501]
[1646853784986,0.74497618,2695.8,2695.3,0.00271124]
[1646853785786,0.741,2695.8,2695.0,0.011667]
[1646853785986,1.12563697,2695.5,2695.3,0.00251664]
[1646853786190,0.74491763,2695.8,2695.3,0.00251664]
[1646853786988,0.74491763,2695.8,2695.0,0.011667]
[1646853786989,0.741,2695.8,2695.0,0.011667]
[1646853787188,1.13711046,2695.7,2695.3,0.00251664]
[1646853787389,0.92809,2695.6,2695.3,0.00251664]
[1646853787890,1.85621,2695.6,2695.3,0.00251664]
[1646853788138,2.45621,2695.6,2694.9,0.08739824]
[1646853788344,0.04613764,2695.4,2694.9,0.08739824]
[1646853788541,0.9283,2695.3,2694.9,0.08739824]
[1646853788748,3.0,2695.1,2694.9,0.08739824]
[1646853788945,5.98696719,2695.0,2693.7,0.0692118]
[1646853789144,1.0,2694.1,2694.0,1.12571046]
[1646853789343,0.441,2694.5,2694.0,1.54186875]
[1646853789542,4.06926734,2694.7,2694.6,1.44894198]
[1646853789543,15.32926734,2694.7,2694.6,1.44894198]
[1646853789744,16.07026734,2694.7,2694.6,1.34894198]
[1646853789943,16.76,2694.6,2693.3,1.53977854]
[1646853790143,0.441,2694.5,2693.4,1.5420519]
[1646853790347,0.92861,2694.3,2693.8,1.19968737]
[1646853790544,0.441,2694.2,2693.9,1.5420519]
[1646853791143,1.0,2694.5,2693.9,1.5420519]
[1646853791543,0.92849,2694.5,2693.9,1.5420519]
[1646853791746,1.85698,2694.5,2693.9,1.5420519]
[1646853791988,1.0,2694.2,2693.9,1.5420519]
[1646853792586,1.0,2694.2,2693.8,1.09968737]
[1646853792889,1.441,2694.2,2693.8,1.09968737]
[1646853793290,1.441,2694.2,2693.9,0.00305013]
[1646853793492,0.441,2694.2,2693.9,0.00305013]
[1646853793901,0.441,2694.2,2694.0,0.00089472]
[1646853794094,0.441,2694.2,2693.9,0.00305013]
[1646853794095,3.441,2694.2,2693.9,0.00305013]
[1646853794294,0.92887,2693.9,2693.3,1.46842812]
[1646853794494,2.29875,2693.8,2693.4,1.54228039]
[1646853795092,3.29875,2693.8,2693.4,1.54228039]
[1646853795294,4.29875,2693.8,2693.4,1.54228039]
[1646853795495,0.92888,2693.7,2693.4,1.54228039]
[1646853795744,1.7288891,2693.9,2693.5,0.94004123]
[1646853795745,0.441,2693.6,2693.5,0.94004123]
[1646853795942,0.441,2693.6,2693.5,2.48232162]
[1646853796645,1.0,2693.8,2693.5,2.47927104]
[1646853796842,1.0,2693.8,2693.6,1.54228039]
[1646853798052,1.441,2693.8,2693.6,1.54498768]
[1646853798251,1.441,2693.8,2693.6,0.00270729]
[1646853798650,0.441,2693.8,2693.6,0.00270729]
[1646853798850,1.441,2693.8,2693.6,0.00270729]
[1646853799052,0.441,2693.8,2693.4,1.54216706]
[1646853799257,1.0,2694.2,2693.6,0.00270729]
[1646853799258,0.441,2694.2,2693.6,0.00270729]
[1646853799689,0.48826019,2694.2,2693.6,0.00270729]
[1646853799893,1.0,2693.9,2693.6,0.00270729]
[1646853800094,1.0,2693.9,2693.7,1.18775401]
[1646853800292,1.0,2693.9,2693.8,1.54216706]
[1646853800494,1.0,2694.8,2693.9,4.5]
[1646853800695,2.05594735,2694.9,2694.1,0.08301958]
[1646853800892,1.05594735,2694.9,2694.2,1.54216706]
[1646853801095,0.55594735,2694.9,2694.2,1.54216706]
[1646853801495,1.0,2694.8,2694.2,1.54216706]
[1646853802094,1.0,2694.8,2694.3,1.06666875]
[1646853802297,1.0,2694.8,2694.4,1.54179765]
[1646853802495,1.0,2694.8,2694.3,1.06666875]
[1646853802898,1.0,2694.8,2694.4,1.54176153]
[1646853803542,3.41265735,2694.9,2694.4,1.54176153]
[1646853803753,1.0,2694.7,2693.8,0.1855]
[1646853803947,1.0,2694.7,2694.3,0.00085371]
[1646853803948,3.0,2694.4,2694.3,0.00085371]
[1646853804145,4.441,2694.4,2694.3,0.00085371]
[1646853804344,0.05223063,2694.3,2694.1,0.00251228]
[1646853804552,0.441,2694.2,2694.1,0.00251228]
[1646853804745,1.741,2694.2,2694.1,0.00251228]
[1646853804947,0.741,2694.2,2694.1,0.00251228]
[1646853805145,0.741,2694.2,2693.8,1.54197583]
[1646853805344,0.741,2694.2,2694.0,0.00254072]
[1646853806146,1.741,2694.2,2694.0,0.00254072]
[1646853806345,1.741,2694.2,2693.8,1.54197583]
[1646853806545,1.441,2694.2,2694.0,0.00254077]
[1646853807198,0.4904019,2694.7,2694.0,0.00254077]
[1646853807392,0.4904019,2694.7,2693.9,1.54197583]
[1646853807793,1.4904019,2694.7,2694.5,0.89379008]
[1646853808597,1.4904019,2694.7,2693.8,0.08280464]
[1646853808796,1.4904019,2694.7,2694.1,0.00253653]
[1646853809598,0.4904019,2694.7,2694.5,0.95385922]
[1646853809803,0.92841,2694.8,2694.5,0.95385922]
[1646853810500,0.92838,2694.9,2694.5,0.95385922]
[1646853810737,2.78569,2695.1,2694.5,1.0359238]
[1646853811146,8.5,2694.9,2694.4,0.014001]
[1646853811347,8.5,2694.9,2694.1,0.00253653]
[1646853811348,16.76,2694.9,2694.1,0.00253653]
[1646853811543,11.26,2694.5,2694.1,0.00253653]
[1646853811747,15.26,2694.2,2694.1,0.00173653]
[1646853812041,15.26,2694.2,2693.3,1.46842812]
[1646853812042,0.0498955,2694.0,2693.3,1.46842812]
[1646853812240,0.05189497,2693.7,2693.4,1.54210824]
[1646853812444,1.90669368,2693.9,2693.8,0.59624627]
[1646853813043,4.27660368,2693.9,2693.8,0.59624627]
[1646853813243,5.27660368,2693.9,2693.8,0.59624627]
[1646853813443,5.5,2693.8,2693.3,1.65402812]
[1646853813643,2.36986,2693.7,2693.3,1.65402812]
[1646853813844,4.22765,2693.7,2693.3,1.46842812]
[1646853814243,5.22765,2693.7,2693.3,1.46842812]
[1646853814496,1.0,2693.4,2693.3,0.38494311]
[1646853814698,1.0,2693.4,2692.8,1.23659604]
[1646853814699,17.68896,2693.3,2692.8,0.1855]
[1646853815005,3.29897,2693.4,2692.6,0.03248655]
[1646853815006,11.26,2693.1,2692.6,0.03248655]
[1646853815198,1.0,2692.9,2692.7,1.54246662]
[1646853815396,0.441,2692.8,2692.7,1.54246662]
[1646853815597,1.441,2692.8,2692.6,0.03248655]
[1646853816198,1.0,2692.7,2692.6,0.03552671]
[1646853816398,2.37019,2692.7,2692.6,1.57811729]
[1646853817198,2.37019,2692.7,2692.6,1.57507713]
[1646853817798,2.37019,2692.7,2692.5,0.00304028]
[1646853817799,5.5,2692.6,2692.5,0.00304028]
[1646853818005,8.99159751,2692.6,2692.5,0.00304028]
[1646853818247,0.92945,2692.4,2691.6,0.26738]
[1646853818448,0.441,2692.3,2691.6,0.08188]
[1646853818645,0.441,2692.2,2691.6,0.08188]
[1646853818845,0.441,2692.1,2691.6,0.08188]
[1646853819047,0.05269566,2692.0,2691.5,0.9217326]
[1646853819247,0.441,2692.0,2691.5,0.9217326]
[1646853820045,0.441,2692.0,2691.5,1.6052338]
[1646853820647,0.441,2692.0,2691.6,0.75491439]
[1646853821049,0.441,2692.0,2691.6,0.07411234]
[1646853821647,0.441,2692.0,2691.6,0.00269915]
[1646853821896,0.441,2692.0,2691.5,0.9077316]
[1646853822087,0.441,2692.0,2691.7,0.0026991]
[1646853822487,0.441,2692.0,2691.9,0.01412]
[1646853822688,1.37024,2692.4,2691.9,0.01412]
[1646853823088,1.37024,2692.4,2692.3,1.22390424]
[1646853823492,1.37024,2692.4,2692.0,0.00269874]
[1646853824292,1.67024,2692.4,2691.9,0.08492582]
[1646853824591,1.67024,2692.4,2692.1,0.00249685]
[1646853824991,3.52883,2692.4,2692.1,0.00249685]
[1646853825195,1.0,2692.2,2692.1,0.00249685]
[1646853825642,1.0,2692.2,2692.0,0.07017272]
[1646853825844,0.92932,2692.1,2691.7,0.6835012]
[1646853826043,1.92932,2692.1,2691.7,0.6835012]
[1646853826643,1.92932,2692.1,2691.7,1.89880473]
[1646853826943,1.92932,2692.1,2691.8,0.00249713]
[1646853827952,1.92932,2692.1,2691.7,1.89880473]
[1646853828147,1.92932,2692.1,2691.8,0.00253283]
[1646853828752,3.0,2692.0,2691.5,0.40140858]
[1646853828953,3.0,2692.0,2691.6,1.09841177]
[1646853829405,3.92936,2692.0,2691.5,0.40140858]
[1646853829598,1.0,2691.7,2691.3,0.08348989]
[1646853829799,0.92936,2692.0,2691.8,1.46834545]
[1646853830200,0.05182339,2691.9,2691.8,1.46834545]
[1646853830614,0.49282339,2691.9,2691.8,1.46834545]
[1646853831607,12.96046077,2691.9,2691.8,1.46834545]
[1646853831808,2.70046077,2691.9,2691.8,1.46834545]
[1646853832006,3.70046077,2691.9,2691.8,1.46834545]
[1646853832406,2.3028111,2691.9,2691.8,1.46834545]
[1646853832804,1.0,2691.9,2691.8,1.46834545]
[1646853833004,1.441,2691.9,2691.8,1.46834545]
[1646853833262,0.441,2691.9,2691.8,1.46834545]
[1646853833455,0.56230844,2692.0,2691.8,1.48236945]
[1646853833854,0.56230844,2692.0,2691.9,1.08245953]
[1646853835256,0.92929,2692.2,2691.9,1.08245953]
[1646853835457,2.39837584,2692.2,2691.9,1.08245953]
[1646853836754,1.47847255,2692.2,2691.9,1.08245953]
[1646853836998,0.92921,2692.4,2691.9,1.08245953]
[1646853837199,1.9292,2692.5,2692.0,0.07553248]
[1646853837200,0.9292,2692.5,2692.0,0.07553248]
[1646853837399,1.0,2692.7,2692.0,0.08958448]
[1646853837799,1.0,2692.7,2692.5,1.01280373]
[1646853837998,1.0,2692.7,2692.6,1.54250979]
[1646853838405,1.9291,2692.7,2692.6,1.54250979]
[1646853839201,2.85822,2692.7,2692.6,1.54250979]
[1646853839600,3.85822,2692.7,2692.6,0.42729728]
[1646853841449,4.15822,2692.7,2692.6,0.42729728]
[1646853841649,4.15822,2692.7,2692.3,0.014001]
[1646853841851,3.85822,2692.7,2692.3,0.014001]
[1646853842051,2.85822,2692.7,2692.1,0.0680188]
[1646853842254,1.85867,2692.5,2692.0,0.014052]
[1646853842450,1.92934,2692.4,2692.0,0.014052]
[1646853842649,1.92934,2692.4,2691.9,0.06161934]
[1646853842650,0.92933,2692.3,2691.9,1.14469039]
[1646853843471,0.92933,2692.3,2691.9,0.06161934]
[1646853844494,0.92933,2692.3,2691.9,1.28318815]
[1646853848751,1.85867,2692.5,2691.9,1.28318815]
[1646853848949,0.56297698,2692.9,2692.4,0.014399]
[1646853849148,3.71701,2693.6,2692.8,0.014332]
[1646853849149,1.19405422,2693.5,2692.8,0.014332]
[1646853849348,1.85803,2693.3,2693.1,0.014208]
[1646853849748,1.85803,2693.3,2693.2,0.98397469]
[1646853849948,0.57028014,2693.5,2693.2,0.98397469]
[1646853852201,0.55169212,2693.8,2693.3,3.5]
[1646853852398,0.04990696,2694.0,2693.4,0.014224]
[1646853852600,1.0,2694.2,2693.6,0.01421]
[1646853852901,0.05899037,2694.6,2693.8,0.014186]
[1646853853099,0.05899037,2694.6,2694.3,1.18062741]
[1646853853502,0.01633019,2694.4,2694.3,1.18062741]
[1646853854402,0.05899037,2694.6,2694.3,1.18062741]
[1646853855744,0.05450533,2694.8,2694.3,1.18062741]
[1646853855944,0.0040828,2694.7,2694.3,1.18062741]
[1646853856948,0.0040828,2694.7,2694.3,1.19470441]
[1646853857551,0.0040828,2694.7,2694.2,0.014001]
[1646853857749,0.0040828,2694.7,2693.7,0.08611575]
[1646853857948,0.441,2694.6,2693.7,0.014001]
[1646853858150,1.92872,2694.4,2693.7,0.014001]
[1646853858355,0.06452213,2694.3,2693.5,0.014001]
[1646853858752,0.06452213,2694.3,2693.9,0.86677528]
[1646853859415,0.9287,2694.2,2693.7,0.014001]
[1646853859607,0.9287,2694.2,2693.3,0.014001]
[1646853859608,4.42871,2694.1,2693.3,0.014001]
[1646853859808,1.0,2693.9,2693.4,1.54203037]
[1646853860008,1.441,2693.8,2693.4,1.54203037]
[1646853860208,0.06120398,2693.7,2693.5,1.54203037]
[1646853860411,0.05360116,2693.6,2693.1,0.014001]
[1646853860610,2.34189163,2693.7,2693.6,0.10720231]
[1646853861208,3.22767,2693.7,2693.6,0.10720231]
[1646853861607,4.22767,2693.7,2693.6,0.10720231]
[1646853861810,2.36987,2693.7,2693.6,0.10720231]
[1646853862007,1.441,2693.7,2693.6,0.10720231]
[1646853862208,0.441,2693.7,2693.6,0.10720231]
[1646853862609,2.7863,2694.1,2693.6,0.10720231]
[1646853862811,1.50666606,2694.2,2694.0,0.014354]
[1646853862812,0.56349191,2694.2,2694.0,0.014354]
[1646853863011,0.57798606,2694.2,2694.0,0.014354]
[1646853864050,0.56349191,2694.2,2694.0,0.014354]
[1646853865050,1.0,2694.5,2694.0,0.014354]
[1646853865248,0.441,2694.7,2694.0,0.014354]
[1646853865449,0.01603759,2694.6,2694.0,0.014354]
[1646853865850,0.94454759,2694.6,2694.1,0.014144]
[1646853866050,0.01603759,2694.6,2694.1,0.014144]
[1646853866548,0.0040096,2694.7,2694.1,0.014144]
[1646853866749,0.0040096,2694.7,2694.4,0.92788255]
[1646853867196,0.0040096,2694.7,2694.4,0.94194755]
[1646853867599,0.54527225,2694.9,2694.4,0.94194755]
[1646853867803,0.54527225,2694.9,2694.6,0.014198]
[1646853867804,0.00400984,2694.7,2694.6,0.014198]
[1646853868803,0.54527225,2694.9,2694.6,0.014198]
[1646853869002,0.00391873,2694.8,2694.6,0.014198]
[1646853870003,0.54527225,2694.9,2694.6,0.014198]
[1646853870203,0.00391872,2694.8,2694.6,0.014198]
[1646853871244,0.54527225,2694.9,2694.6,0.014198]
[1646853871944,0.54527225,2694.9,2694.2,0.014001]
[1646853872748,0.00393206,2694.7,2694.3,1.06519121]
[1646853873149,0.00393206,2694.7,2693.7,7.6656]
[1646853873150,0.00393206,2694.7,2694.1,0.014001]
[1646853873355,0.9286,2694.5,2693.7,1.143001]
[1646853873555,0.48408626,2694.4,2693.6,0.10720231]
[1646853873758,0.04672832,2694.3,2693.6,0.10720231]
[1646853873951,0.441,2694.2,2693.6,0.10720231]
[1646853874152,0.441,2694.2,2693.6,1.17868477]
[1646853874410,0.741,2694.2,2693.6,1.17868477]
[1646853874802,0.741,2694.2,2693.9,0.014001]
[1646853876602,1.31086691,2694.2,2693.9,0.014001]
[1646853876803,1.31086691,2694.2,2693.6,0.12126231]
[1646853877004,0.92871,2694.0,2693.7,1.54175538]
[1646853877408,2.15746,2694.0,2693.6,0.10720231]
[1646853878250,1.0,2693.8,2693.6,0.10720231]
[1646853878452,0.9288,2693.7,2693.6,0.10720231]
[1646853878650,0.9288,2693.7,2693.6,1.64906374]
[1646853879152,5.5,2693.6,2693.3,0.014001]
[1646853879353,5.5,2693.6,2693.2,0.00251365]
[1646853879354,0.04187861,2693.5,2693.2,0.00251365]
[1646853879552,12.24334011,2693.4,2692.6,0.014001]
[1646853879751,0.04326866,2693.2,2692.5,0.014001]
[1646853880059,0.05051074,2693.0,2692.5,0.014001]
[1646853880253,0.441,2692.9,2692.5,0.014001]
[1646853880451,0.04369202,2692.8,2692.5,0.014001]
[1646853880650,0.3,2692.9,2692.5,0.014001]
[1646853880850,0.441,2692.8,2692.5,0.014001]
[1646853881054,0.441,2692.7,2692.6,0.00251529]
[1646853881252,1.4685,2692.7,2692.6,0.00251529]
[1646853881451,3.36862699,2692.7,2692.6,0.00251529]
[1646853881903,5.36862699,2692.7,2692.6,0.00251529]
[1646853882092,4.36862699,2692.7,2692.1,0.014001]
[1646853882293,7.52725699,2692.7,2692.5,0.00251534]
[1646853882495,1.85863,2692.6,2692.5,0.00251534]
[1646853882798,2.59963,2692.6,2692.5,0.00251534]
[1646853883197,1.441,2692.6,2692.4,1.07212608]
[1646853883397,1.441,2692.6,2692.4,1.0746414]
[1646853883398,0.441,2692.6,2692.4,1.0746414]
[1646853883698,0.441,2692.6,2692.4,0.00251532]
[1646853884300,0.441,2692.6,2692.3,0.014001]
[1646853884499,0.441,2692.6,2692.0,0.1042456]
[1646853884500,0.9293,2692.4,2692.0,0.1042456]
[1646853884700,2.29964,2692.4,2692.0,0.1042456]
[1646853885750,2.29964,2692.4,2692.0,0.014001]
[1646853885949,2.29964,2692.4,2692.1,0.00251565]
[1646853886148,2.29964,2692.4,2692.1,0.01652765]
[1646853886448,2.29964,2692.4,2692.1,0.00251565]
[1646853886851,2.29964,2692.4,2692.0,0.014001]
[1646853887050,0.4337204,2692.4,2692.1,0.01656741]
[1646853888050,2.5924404,2692.4,2691.8,1.48234645]
[1646853888254,0.92933,2692.3,2692.1,0.00254541]
[1646853888854,1.37033,2692.3,2692.1,0.00254541]
[1646853889054,1.85888,2692.2,2692.1,0.00254541]
[1646853889255,1.85888,2692.2,2691.8,1.46834545]
[1646853889256,2.65289296,2692.2,2691.8,1.46834545]
[1646853889499,14.91289296,2692.2,2692.1,0.00254545]
[1646853889899,15.91289296,2692.2,2692.1,0.00254545]
[1646853890099,5.59988,2692.2,2692.1,0.00254545]
[1646853890503,5.59988,2692.2,2691.8,1.46834545]
[1646853890699,0.92943,2692.1,2692.0,0.00253143]
[1646853890898,1.37043,2692.1,2692.0,0.00253143]
[1646853891303,13.7586406,2692.1,2692.0,0.00253143]
[1646853891698,13.7586406,2692.1,2691.8,1.46834545]
[1646853891699,11.26,2691.9,2691.8,1.46834545]
[1646853891899,11.701,2691.9,2691.8,1.46834545]
[1646853892102,2.741,2691.9,2691.8,1.46834545]
[1646853892302,1.741,2691.9,2691.8,1.46834545]
[1646853892702,0.741,2691.9,2691.8,1.46834545]
[1646853893152,0.441,2691.9,2691.8,1.46834545]
[1646853893556,0.92949,2692.2,2691.8,1.48238145]
[1646853893754,0.92949,2692.2,2692.0,0.014421]
[1646853893955,0.92949,2692.2,2691.9,0.09880961]
[1646853894155,0.92949,2692.2,2692.1,0.014296]
[1646853895554,0.92949,2692.2,2691.9,0.09880961]
[1646853895555,1.8588,2692.2,2692.0,0.00254035]
[1646853896355,1.8588,2692.2,2691.9,0.08452761]
[1646853896555,1.8588,2692.2,2691.9,0.09865661]
[1646853896756,1.8588,2692.2,2692.0,0.00254039]
[1646853897601,0.55138658,2692.5,2692.0,0.014133]
[1646853897801,3.4927,2692.9,2692.2,0.014412]
[1646853897998,0.99868479,2693.2,2692.4,0.014399]
[1646853897999,1.55768479,2693.2,2692.4,0.014399]
[1646853898202,1.55768479,2693.2,2692.5,0.014249]
[1646853898407,1.55768479,2693.2,2692.6,0.014264]
[1646853898605,1.55768479,2693.2,2692.9,0.91836307]
[1646853898806,1.55768479,2693.2,2692.9,0.93240007]
[1646853899404,2.48669479,2693.2,2692.9,0.93240007]
[1646853899808,2.78669479,2693.2,2692.9,0.93240007]
[1646853900005,0.85768479,2693.2,2692.9,0.93240007]
[1646853900206,0.55768479,2693.2,2693.0,0.06948266]
[1646853900406,0.55768479,2693.2,2693.0,0.08367466]
[1646853900652,0.98893553,2693.4,2693.2,1.08725292]
[1646853901052,1.91787553,2693.4,2693.2,1.08725292]
[1646853901455,14.15760183,2693.4,2693.2,1.0897856]
[1646853901654,14.15760183,2693.4,2692.5,0.014001]
[1646853901655,13.16622161,2693.1,2692.5,0.014001]
[1646853901850,13.16622161,2693.1,2692.2,0.0795144]
[1646853901851,0.441,2693.0,2692.3,0.014001]
[1646853902051,1.441,2693.0,2692.4,1.54230062]
[1646853902453,1.441,2693.0,2692.3,0.014001]
[1646853902652,1.441,2693.0,2692.4,1.54234482]
[1646853902852,2.43833586,2693.0,2692.3,0.014001]
[1646853903057,3.36755586,2693.0,2692.3,0.014001]
[1646853903258,0.3,2692.9,2692.3,0.014001]
[1646853903459,1.37023,2692.8,2692.3,0.014001]
[1646853905105,3.22865,2692.8,2692.4,0.0009074]
[1646853905305,4.22865,2692.8,2692.4,0.0009074]
[1646853906106,4.22865,2692.8,2692.2,0.0935154]
[1646853906314,4.22865,2692.8,2692.5,0.00301828]
[1646853906908,15.5380194,2692.8,2692.5,0.00301828]
[1646853907210,12.26,2692.6,2692.0,0.014001]
[1646853907407,0.98068748,2692.4,2691.8,0.014001]
[1646853907610,0.98068748,2692.4,2691.7,0.014001]
[1646853907611,0.98446373,2692.2,2691.7,0.014001]
[1646853907808,3.20320008,2692.3,2691.8,1.54257787]
[1646853908012,0.20951105,2692.8,2691.8,1.54257787]
[1646853908013,0.441,2693.2,2692.2,0.10726786]
[1646853908262,0.01632901,2693.7,2693.1,0.014458]
[1646853908459,0.92887,2693.5,2693.4,0.014458]
[1646853908659,1.0,2693.7,2693.4,0.014458]
[1646853908862,0.01632924,2693.7,2693.6,1.09565636]
[1646853909059,0.01632924,2693.7,2693.6,1.1989022]
[1646853909663,0.92862,2694.5,2693.6,1.1989022]
[1646853909859,1.12252797,2694.7,2694.2,0.014458]
[1646853910058,0.92854,2694.7,2694.4,0.93363616]
[1646853910258,0.54542922,2694.8,2694.5,0.07232821]
[1646853910658,3.46612746,2695.1,2694.5,0.07232821]
[1646853910859,0.92841,2694.9,2694.5,0.08647721]
[1646853911260,0.0039129,2694.8,2694.7,0.014334]
[1646853912204,7.33564923,2695.2,2694.7,0.014334]
[1646853912205,7.32,2695.2,2694.7,0.014334]
[1646853912402,7.32,2695.2,2695.0,0.014458]
[1646853912603,7.32,2695.2,2695.1,0.014266]
[1646853912804,8.327,2696.0,2695.1,0.014266]
[1646853913004,7.32,2696.0,2695.6,0.014458]
[1646853913206,7.32,2696.0,2695.7,0.014231]
[1646853913409,7.32,2696.0,2695.9,0.01436]
[1646853913610,0.04083353,2696.1,2695.9,0.01436]
[1646853913908,0.04083353,2696.1,2696.0,0.014276]
[1646853914508,0.04083353,2696.1,2695.9,0.08794729]
[1646853914509,0.025072,2696.1,2695.9,0.07358729]
[1646853914712,0.025072,2696.1,2695.0,1.1654]
[1646853914713,5.941,2696.0,2695.0,1.1654]
[1646853914910,5.941,2696.0,2694.8,0.014001]
[1646853914911,18.24629039,2696.0,2694.8,0.014001]
[1646853915114,0.0465433,2695.9,2694.9,0.014001]
[1646853915310,0.441,2695.8,2695.2,0.014458]
[1646853915514,1.0,2696.0,2695.3,0.014458]
[1646853915750,0.025072,2696.1,2695.9,1.23355724]
[1646853915949,0.012733,2696.0,2695.9,1.23355724]
[1646853916348,0.012733,2696.0,2695.7,0.08466302]
[1646853916550,0.012733,2696.0,2695.7,0.014001]
[1646853916952,0.953082,2696.1,2695.7,0.014001]
[1646853917150,0.00408937,2696.0,2695.7,0.014001]
[1646853917951,0.00408937,2696.0,2695.6,0.014458]
[1646853918152,1.253082,2696.1,2695.6,0.014458]
[1646853918354,0.00408937,2696.0,2695.6,0.014458]
[1646853919157,0.00408937,2696.0,2695.5,0.199858]
[1646853919158,11.30669078,2695.6,2695.1,0.014001]
[1646853919416,0.49417446,2695.5,2694.7,0.014001]
[1646853919599,0.49417446,2695.5,2694.8,0.014001]
[1646853919798,1.49417446,2695.5,2694.8,0.014001]
[1646853919998,0.49417446,2695.5,2694.9,0.014258]
[1646853920199,1.42235446,2695.5,2695.1,0.014452]
[1646853920399,1.36918,2695.5,2695.1,0.014092]
[1646853920600,7.419,2695.9,2695.3,0.01437]
[1646853920805,7.419,2695.9,2695.6,0.014458]
[1646853920806,0.0163559,2695.7,2695.6,0.014458]
[1646853921197,0.0163559,2695.7,2695.5,0.014001]
[1646853921801,7.419,2695.9,2695.5,0.014134]
[1646853922199,0.00408945,2695.7,2695.5,0.014134]
[1646853922606,0.00408945,2695.7,2695.4,0.014458]
[1646853923004,8.34716,2695.9,2695.5,1.09904297]
[1646853923253,0.00408947,2695.7,2695.5,1.11316097]
[1646853923452,0.93219947,2695.7,2695.5,1.11316097]
[1646853923652,0.93219947,2695.7,2695.5,0.014118]
[1646853923853,0.93219947,2695.7,2695.2,0.014001]
[1646853924054,0.93219947,2695.7,2695.1,0.014371]
[1646853924253,2.78467,2695.6,2695.0,0.014001]
[1646853924453,3.08467,2695.6,2695.0,0.014001]
[1646853924660,1.1996332,2695.5,2695.0,0.014001]
[1646853924858,0.92826,2695.4,2695.0,0.014001]
[1646853925655,0.00398706,2695.3,2695.0,0.014001]
[1646853926056,0.93229706,2695.3,2694.9,0.014001]
[1646853926554,0.92831,2695.3,2694.9,0.014001]
[1646853926756,0.00398709,2695.2,2694.9,0.014001]
[1646853927205,0.92832,2695.1,2694.9,0.014001]
[1646853928002,0.93230712,2695.1,2694.9,0.014001]
[1646853928205,1.23230712,2695.1,2694.9,0.014001]
[1646853928408,0.441,2695.0,2694.4,0.014001]
[1646853928611,0.92857,2694.5,2694.2,0.014458]
[1646853928806,0.92852,2694.8,2694.7,0.71564026]
[1646853929007,0.441,2694.8,2694.7,0.71564026]
[1646853929713,2.29816,2694.8,2694.7,0.71564026]
[1646853930950,2.29816,2694.8,2694.7,0.61564026]
[1646853931148,5.5,2694.7,2694.4,0.014001]
[1646853931349,2.2982,2694.6,2694.0,0.014001]
[1646853931556,1.85735,2694.5,2693.8,0.014001]
[1646853931748,0.92865,2694.3,2693.8,0.014001]
[1646853931948,0.441,2694.2,2693.8,0.014001]
[1646853932354,2.29838,2694.2,2693.8,0.014001]
[1646853932949,2.29838,2694.2,2693.7,0.07527588]
[1646853934423,2.29838,2694.2,2693.4,0.07848514]
[1646853934615,2.29838,2694.2,2693.6,0.08945252]
[1646853934814,2.29838,2694.2,2693.1,7.9985]
[1646853935018,2.29838,2694.2,2693.2,1.54165333]
[1646853935213,2.29838,2694.2,2693.4,0.07443818]
[1646853935412,2.29838,2694.2,2693.7,1.00834799]
[1646853936414,2.29838,2694.2,2693.6,0.08070612]
[1646853936616,2.59838,2694.2,2693.2,0.08022464]
[1646853936817,0.92879,2693.9,2693.4,0.06945028]
[1646853937015,0.92879,2693.9,2693.5,1.54168757]
[1646853937214,1.92879,2693.9,2693.5,1.54168757]
[1646853937415,0.92879,2693.9,2693.5,1.54168757]
[1646853937914,0.92879,2693.9,2693.2,1.05833008]
[1646853938147,0.92879,2693.9,2693.3,1.54177062]
[1646853938755,0.04547294,2694.0,2693.3,1.54177062]
[1646853938955,0.0157448,2694.1,2693.4,0.08230588]
[1646853939154,0.0157448,2694.1,2694.0,1.1224805]
[1646853939752,2.85715,2694.6,2694.0,1.1224805]
[1646853939753,1.85715,2694.6,2694.0,1.1224805]
[1646853939954,2.85715,2694.6,2694.0,1.1224805]
[1646853940156,0.00393655,2694.4,2694.0,1.1224805]
[1646853940359,0.00393655,2694.4,2693.4,4.73600588]
[1646853940561,0.0538558,2694.0,2693.0,2.31506915]
[1646853940759,0.0538558,2694.0,2693.0,0.00252994]
[1646853940760,0.49606428,2693.9,2693.0,0.00252994]
[1646853940957,0.49606428,2693.9,2692.7,4.2872]
[1646853940958,0.05652049,2693.7,2692.7,4.2872]
[1646853941157,0.441,2693.6,2692.7,4.2872]
[1646853941358,0.92912,2693.2,2692.5,2.7223]
[1646853941656,0.92912,2693.2,2692.6,1.17158852]
[1646853941660,0.06003061,2692.9,2692.6,1.17158852]
[1646853941905,0.06003061,2692.9,2691.9,1.62671965]
[1646853941906,2.5,2692.7,2691.9,1.62671965]
[1646853942104,2.5,2692.7,2691.9,0.06942844]
[1646853942505,2.5,2692.7,2692.0,0.1857]
[1646853942705,1.14534524,2692.3,2692.0,0.1857]
[1646853942911,1.101,2692.3,2691.8,0.1857]
[1646853943313,1.101,2692.3,2691.7,1.19201856]
[1646853943711,1.101,2692.3,2691.9,0.00303678]